[Event "FIDE Women World Blitz 2021"]
[Site "Warsaw"]
[Date "2021.12.29"]
[Round "1.27"]
[White "Loskutova, Viktoriya"]
[Black "Muetsch, Annmarie"]
[Result "0-1"]
[ECO "C41"]
[WhiteElo "2195"]
[BlackElo "2279"]
[Annotator "NA"]
[PlyCount "66"]
[EventDate "2021.12.29"]
[EventType "swiss"]
[EventCountry "POL"]
[Tiebreak "Cut1 Buchholz"]
[SourceTitle "playchess.com"]
[Source "ChessBase"]
[SourceQuality "1"]
[TimeControl "180+2"]

1. e4 {[%emt 0:00:01]} d6 {[%emt 0:00:00]} 2. d4 {[%emt 0:00:01]} Nf6 {[%emt 0:
00:02]} 3. Nc3 {[%emt 0:00:02]} e5 {[%emt 0:00:00]} 4. Nf3 {[%emt 0:00:01]}
Nbd7 {[%emt 0:00:01]} 5. Bc4 {[%emt 0:00:01]} Be7 {[%emt 0:00:01]} 6. O-O {
[%emt 0:00:02]} c6 {[%emt 0:00:01]} 7. a4 {[%emt 0:00:00]} Qc7 {[%emt 0:00:01]}
8. Re1 {[%emt 0:00:02]} h6 {[%emt 0:00:01]} 9. h3 {[%emt 0:00:06]} Nf8 {
[%emt 0:00:02]} 10. Be3 {[%emt 0:00:41]} Ng6 {[%emt 0:00:01]} 11. dxe5 {
[%emt 0:00:54]} dxe5 {[%emt 0:00:03]} 12. Bb3 {[%emt 0:00:13]} O-O {[%emt 0:00:
04]} 13. Nd2 {[%emt 0:00:06]} b6 {[%emt 0:00:09]} 14. Nf1 {[%emt 0:00:09]} Bb4
{[%emt 0:00:24]} 15. Bd2 {[%emt 0:00:09]} Ba6 {[%emt 0:00:22]} 16. Ng3 {
[%emt 0:00:04]} Rad8 {[%emt 0:00:06]} 17. Qc1 {[%emt 0:00:04]} Nf4 {[%emt 0:00:
18]} 18. Nb1 {[%emt 0:00:09]} Bxd2 {[%emt 0:00:07]} 19. Nxd2 {[%emt 0:00:01]}
g6 {[%emt 0:00:10]} 20. Nf3 {[%emt 0:00:13]} Kg7 {[%emt 0:00:07]} 21. Qe3 {
[%emt 0:00:03]} Rfe8 {[%emt 0:00:11]} 22. Kh2 {[%emt 0:00:07]} Qe7 {[%emt 0:00:
04]} 23. Nf1 {[%emt 0:00:19]} Bc8 {[%emt 0:00:11]} 24. Kg1 {[%emt 0:00:03]} Nh7
{[%emt 0:00:18]} 25. a5 {[%emt 0:00:03]} b5 {[%emt 0:00:04]} 26. c3 {[%emt 0:
00:05]} Ng5 {[%emt 0:00:02]} 27. Nxg5 {[%emt 0:00:03]} Qxg5 {[%emt 0:00:03]}
28. Ng3 {[%emt 0:00:06]} h5 {[%emt 0:00:04]} 29. Qf3 {[%emt 0:00:05]} h4 {
[%emt 0:00:05]} 30. Nf1 {[%emt 0:00:03]} Bxh3 {[%emt 0:00:08]} 31. Ne3 {
[%emt 0:00:00]} Bxg2 {[%emt 0:00:05]} 32. Nxg2 {[%emt 0:00:02]} h3 {[%emt 0:00:
00]} 33. Kh2 {[%emt 0:00:03]} hxg2 {[%emt 0:00:03]} 0-1

[Event "FIDE Women World Blitz 2021"]
[Site "Warsaw"]
[Date "2021.12.29"]
[Round "1.28"]
[White "Danielian, Elina"]
[Black "Jakubowska, Anna"]
[Result "1-0"]
[ECO "D02"]
[WhiteElo "2450"]
[BlackElo "2106"]
[Annotator "ChessBase"]
[PlyCount "151"]
[EventDate "2021.12.29"]
[EventType "swiss"]
[EventCountry "POL"]
[Tiebreak "Cut1 Buchholz"]
[SourceTitle "playchess.com"]
[Source "ChessBase"]
[SourceQuality "1"]
[TimeControl "180+2"]

1. d4 {[%emt 0:00:01]} d5 {[%emt 0:00:01]} 2. Nf3 {[%emt 0:00:02]} Nf6 {
[%emt 0:00:02]} 3. Bf4 {[%emt 0:00:01]} c5 {[%emt 0:00:04]} 4. e3 {[%emt 0:00:
01]} Bf5 {[%emt 0:00:07]} 5. c4 {[%emt 0:00:25]} e6 {[%emt 0:00:12]} 6. Nc3 {
[%emt 0:00:02]} Nc6 {[%emt 0:00:14]} 7. a3 {[%emt 0:00:23]} cxd4 {[%emt 0:00:
08]} 8. Nxd4 {[%emt 0:00:07]} Nxd4 {[%emt 0:00:13]} 9. Qxd4 {[%emt 0:00:02]}
Be7 {[%emt 0:00:28]} 10. cxd5 {[%emt 0:00:07]} exd5 {[%emt 0:00:25]} 11. Bb5+ {
[%emt 0:00:06]} Bd7 {[%emt 0:00:06]} 12. O-O {[%emt 0:00:29]} O-O {[%emt 0:00:
03]} 13. Bxd7 {[%emt 0:00:07]} Qxd7 {[%emt 0:00:01]} 14. Rfd1 {[%emt 0:00:03]}
Rfd8 {[%emt 0:00:03]} 15. h3 {[%emt 0:00:24]} Qf5 {[%emt 0:00:13]} 16. Qe5 {
[%emt 0:00:08]} Qe6 {[%emt 0:00:16]} 17. Rd3 {[%emt 0:00:13]} Bd6 {[%emt 0:00:
04]} 18. Qxe6 {[%emt 0:00:08]} fxe6 {[%emt 0:00:02]} 19. Bxd6 {[%emt 0:00:05]}
Rxd6 {[%emt 0:00:01]} 20. e4 {[%emt 0:00:06]} Rb6 {[%emt 0:00:01]} 21. exd5 {
[%emt 0:00:07]} Nxd5 {[%emt 0:00:09]} 22. Nxd5 {[%emt 0:00:02]} exd5 {[%emt 0:
00:00]} 23. Rb1 {[%emt 0:00:03]} Rc8 {[%emt 0:00:08]} 24. Rxd5 {[%emt 0:00:07]}
Rc2 {[%emt 0:00:01]} 25. b4 {[%emt 0:00:07]} Re6 {[%emt 0:00:14]} 26. Rbd1 {
[%emt 0:00:08]} Ree2 {[%emt 0:00:03]} 27. Rf5 {[%emt 0:00:01]} g6 {[%emt 0:00:
05]} 28. Rd8+ {[%emt 0:00:06]} Kg7 {[%emt 0:00:00]} 29. Rd7+ {[%emt 0:00:01]}
Kh6 {[%emt 0:00:10]} 30. Rff7 {[%emt 0:00:01]} Re1+ {[%emt 0:00:15]} 31. Kh2 {
[%emt 0:00:01]} Ree2 {[%emt 0:00:01]} 32. Kg3 {[%emt 0:00:04]} Rc3+ {[%emt 0:
00:02]} 33. f3 {[%emt 0:00:06]} Rcc2 {[%emt 0:00:03]} 34. Rxh7+ {[%emt 0:00:03]
} Kg5 {[%emt 0:00:01]} 35. f4+ {[%emt 0:00:06]} Kf5 {[%emt 0:00:10]} 36. Rhf7+
{[%emt 0:00:01]} Ke4 {[%emt 0:00:02]} 37. Rfe7+ {[%emt 0:00:00]} Kf5 {[%emt 0:
00:01]} 38. Rxe2 {[%emt 0:00:01]} Rxe2 {[%emt 0:00:01]} 39. Rxb7 {[%emt 0:00:
03]} Re3+ {[%emt 0:00:01]} 40. Kf2 {[%emt 0:00:00]} Rxa3 {[%emt 0:00:00]} 41.
Rf7+ {[%emt 0:00:02]} Ke4 {[%emt 0:00:04]} 42. Rf6 {[%emt 0:00:03]} Rb3 {
[%emt 0:00:04]} 43. Rxg6 {[%emt 0:00:01]} Kxf4 {[%emt 0:00:03]} 44. Rg4+ {
[%emt 0:00:03]} Kf5 {[%emt 0:00:01]} 45. Rg7 {[%emt 0:00:00]} Rxb4 {[%emt 0:00:
04]} 46. Rxa7 {[%emt 0:00:01]} Kf4 {[%emt 0:00:02]} 47. Rf7+ {[%emt 0:00:02]}
Kg5 {[%emt 0:00:01]} 48. Kg3 {[%emt 0:00:03]} Rb3+ {[%emt 0:00:01]} 49. Rf3 {
[%emt 0:00:01]} Rb4 {[%emt 0:00:01]} 50. Rc3 {[%emt 0:00:03]} Ra4 {[%emt 0:00:
01]} 51. h4+ {[%emt 0:00:05]} Kg6 {[%emt 0:00:00]} 52. Rc6+ {[%emt 0:00:02]}
Kh5 {[%emt 0:00:02]} 53. Rc5+ {[%emt 0:00:02]} Kg6 {[%emt 0:00:01]} 54. Kh3 {
[%emt 0:00:00]} Rb4 {[%emt 0:00:03]} 55. h5+ {[%emt 0:00:03]} Kh6 {[%emt 0:00:
00]} 56. g4 {[%emt 0:00:01]} Rb1 {[%emt 0:00:01]} 57. Rc6+ {[%emt 0:00:01]} Kg5
{[%emt 0:00:02]} 58. Rg6+ {[%emt 0:00:02]} Kf4 {[%emt 0:00:01]} 59. Rf6+ {
[%emt 0:00:01]} Kg5 {[%emt 0:00:01]} 60. Rf5+ {[%emt 0:00:01]} Kh6 {[%emt 0:00:
00]} 61. Ra5 {[%emt 0:00:05]} Rc1 {[%emt 0:00:05]} 62. Kg3 {[%emt 0:00:04]} Rf1
{[%emt 0:00:03]} 63. Ra6+ {[%emt 0:00:05]} Kh7 {[%emt 0:00:02]} 64. Kh4 {
[%emt 0:00:02]} Rb1 {[%emt 0:00:03]} 65. Re6 {[%emt 0:00:03]} Rb5 {[%emt 0:00:
02]} 66. Rf6 {[%emt 0:00:01]} Kg7 {[%emt 0:00:01]} 67. Rf5 {[%emt 0:00:01]} Rb4
{[%emt 0:00:01]} 68. Kg5 {[%emt 0:00:01]} Kh7 {[%emt 0:00:01]} 69. Rf7+ {
[%emt 0:00:01]} Kg8 {[%emt 0:00:01]} 70. Ra7 {[%emt 0:00:01]} Rb5+ {[%emt 0:00:
02]} 71. Kh4 {[%emt 0:00:01]} Rb4 {[%emt 0:00:01]} 72. h6 {[%emt 0:00:01]} Rc4
{[%emt 0:00:01]} 73. Kh5 {[%emt 0:00:03]} Rc1 {[%emt 0:00:02]} 74. g5 {[%emt 0:
00:03]} Rc6 {[%emt 0:00:01]} 75. Ra8+ {[%emt 0:00:02]} Kf7 {[%emt 0:00:02]} 76.
h7 {[%emt 0:00:01]} 1-0

[Event "FIDE Women World Blitz 2021"]
[Site "Warsaw"]
[Date "2021.12.29"]
[Round "1.30"]
[White "Pourkashiyan, Atousa"]
[Black "Semenova, Elena"]
[Result "1/2-1/2"]
[ECO "C42"]
[WhiteElo "2322"]
[BlackElo "2233"]
[Annotator "NA"]
[PlyCount "56"]
[EventDate "2021.12.29"]
[EventType "swiss"]
[EventCountry "POL"]
[Tiebreak "Cut1 Buchholz"]
[SourceTitle "playchess.com"]
[Source "ChessBase"]
[SourceQuality "1"]
[TimeControl "180+2"]

1. e4 {[%emt 0:00:02]} e5 {[%emt 0:00:00]} 2. Nf3 {[%emt 0:00:01]} Nf6 {
[%emt 0:00:01]} 3. Nxe5 {[%emt 0:00:05]} d6 {[%emt 0:00:00]} 4. Nf3 {[%emt 0:
00:01]} Nxe4 {[%emt 0:00:01]} 5. Nc3 {[%emt 0:00:01]} Nxc3 {[%emt 0:00:01]} 6.
dxc3 {[%emt 0:00:01]} Nc6 {[%emt 0:00:01]} 7. Bf4 {[%emt 0:00:06]} Be7 {
[%emt 0:00:01]} 8. Qd2 {[%emt 0:00:03]} Be6 {[%emt 0:00:01]} 9. O-O-O {[%emt 0:
00:06]} Qd7 {[%emt 0:00:01]} 10. Kb1 {[%emt 0:00:06]} a6 {[%emt 0:00:01]} 11.
Ng5 {[%emt 0:00:26]} Bxg5 {[%emt 0:00:02]} 12. Bxg5 {[%emt 0:00:01]} f6 {
[%emt 0:00:00]} 13. Bf4 {[%emt 0:00:19]} O-O-O {[%emt 0:00:02]} 14. f3 {
[%emt 0:00:05]} Rhe8 {[%emt 0:00:13]} 15. Bd3 {[%emt 0:00:02]} Bf5 {[%emt 0:00:
10]} 16. Bc4 {[%emt 0:00:05]} Be6 {[%emt 0:00:05]} 17. Bd3 {[%emt 0:00:19]} Bf5
{[%emt 0:00:01]} 18. Be2 {[%emt 0:00:19]} Ne5 {[%emt 0:00:21]} 19. g4 {[%emt 0:
00:04]} Be6 {[%emt 0:00:10]} 20. Qd4 {[%emt 0:00:21]} Nc6 {[%emt 0:00:07]} 21.
Qf2 {[%emt 0:00:03]} Bxa2+ {[%emt 0:00:09]} 22. Kc1 {[%emt 0:00:16]} Bf7 {
[%emt 0:00:07]} 23. Bd3 {[%emt 0:00:03]} Bg6 {[%emt 0:00:10]} 24. Bc4 {[%emt 0:
00:04]} Bf7 {[%emt 0:00:14]} 25. Bd3 {[%emt 0:00:01]} Bg6 {[%emt 0:00:01]} 26.
Bc4 {[%emt 0:00:11]} Bf7 {[%emt 0:00:08]} 27. Bd3 {[%emt 0:00:12]} Bg6 {
[%emt 0:00:05]} 28. Bc4 {[%emt 0:00:04]} Bf7 {[%emt 0:00:09]} 1/2-1/2

[Event "FIDE Women World Blitz 2021"]
[Site "Warsaw"]
[Date "2021.12.29"]
[Round "1.31"]
[White "Utiatskaja, Irina"]
[Black "Padmini, Rout"]
[Result "0-1"]
[ECO "B38"]
[WhiteElo "2184"]
[BlackElo "2353"]
[Annotator "NA"]
[PlyCount "72"]
[EventDate "2021.12.29"]
[EventType "swiss"]
[EventCountry "POL"]
[Tiebreak "Cut1 Buchholz"]
[SourceTitle "playchess.com"]
[Source "ChessBase"]
[SourceQuality "1"]
[TimeControl "180+2"]

1. e4 {[%emt 0:00:01]} c5 {[%emt 0:00:01]} 2. Nf3 {[%emt 0:00:02]} g6 {[%emt 0:
00:02]} 3. d4 {[%emt 0:00:07]} cxd4 {[%emt 0:00:01]} 4. Nxd4 {[%emt 0:00:01]}
Nc6 {[%emt 0:00:01]} 5. c4 {[%emt 0:00:05]} Bg7 {[%emt 0:00:01]} 6. Be3 {
[%emt 0:00:02]} Nf6 {[%emt 0:00:02]} 7. Nc3 {[%emt 0:00:02]} O-O {[%emt 0:00:
02]} 8. f3 {[%emt 0:00:09]} d6 {[%emt 0:00:02]} 9. Be2 {[%emt 0:00:04]} Bd7 {
[%emt 0:00:06]} 10. Nc2 {[%emt 0:00:06]} Qa5 {[%emt 0:00:05]} 11. O-O {[%emt 0:
00:07]} Rfc8 {[%emt 0:00:01]} 12. Qd2 {[%emt 0:00:31]} Ne5 {[%emt 0:00:25]} 13.
Na3 {[%emt 0:00:02]} a6 {[%emt 0:00:04]} 14. Rfd1 {[%emt 0:00:06]} Be6 {
[%emt 0:00:10]} 15. Nd5 {[%emt 0:00:15]} Qxd2 {[%emt 0:00:11]} 16. Rxd2 {
[%emt 0:00:03]} Bxd5 {[%emt 0:00:06]} 17. cxd5 {[%emt 0:00:03]} b5 {[%emt 0:00:
35]} 18. h3 {[%emt 0:00:08]} Nfd7 {[%emt 0:01:10]} 19. f4 {[%emt 0:00:21]} b4 {
[%emt 0:00:06]} 20. Nc2 {[%emt 0:00:06]} Nc4 {[%emt 0:00:02]} 21. Bxc4 {
[%emt 0:00:03]} Rxc4 {[%emt 0:00:01]} 22. Bd4 {[%emt 0:00:43]} Rxc2 {[%emt 0:
00:15]} 23. Rxc2 {[%emt 0:00:04]} Bxd4+ {[%emt 0:00:01]} 24. Kf1 {[%emt 0:00:
02]} Nc5 {[%emt 0:00:02]} 25. Rd1 {[%emt 0:00:12]} Bg7 {[%emt 0:00:07]} 26. e5
{[%emt 0:00:03]} a5 {[%emt 0:00:01]} 27. exd6 {[%emt 0:00:02]} exd6 {[%emt 0:
00:01]} 28. Re2 {[%emt 0:00:08]} Bf6 {[%emt 0:00:02]} 29. g4 {[%emt 0:00:03]}
h6 {[%emt 0:00:01]} 30. Kg2 {[%emt 0:00:06]} Na4 {[%emt 0:00:01]} 31. Rc1 {
[%emt 0:00:05]} Nc5 {[%emt 0:00:05]} 32. b3 {[%emt 0:00:02]} Nd3 {[%emt 0:00:
02]} 33. Rf1 {[%emt 0:00:01]} Rc8 {[%emt 0:00:01]} 34. Rf3 {[%emt 0:00:05]} Nc1
{[%emt 0:00:02]} 35. Re1 {[%emt 0:00:03]} Rc2+ {[%emt 0:00:02]} 36. Kg3 {
[%emt 0:00:01]} Ne2+ {[%emt 0:00:01]} 0-1

[Event "FIDE Women World Blitz 2021"]
[Site "Warsaw"]
[Date "2021.12.29"]
[Round "1.32"]
[White "Bulmaga, Irina"]
[Black "Smirnova, Ekaterina"]
[Result "1-0"]
[ECO "C18"]
[WhiteElo "2405"]
[BlackElo "2196"]
[Annotator "NA"]
[PlyCount "127"]
[EventDate "2021.12.29"]
[EventType "swiss"]
[EventCountry "POL"]
[Tiebreak "Cut1 Buchholz"]
[SourceTitle "playchess.com"]
[Source "ChessBase"]
[SourceQuality "1"]
[TimeControl "180+2"]

1. e4 {[%emt 0:00:02]} e6 {[%emt 0:00:00]} 2. d4 {[%emt 0:00:01]} d5 {[%emt 0:
00:01]} 3. Nc3 {[%emt 0:00:02]} Bb4 {[%emt 0:00:02]} 4. e5 {[%emt 0:00:01]} c5
{[%emt 0:00:00]} 5. a3 {[%emt 0:00:02]} Bxc3+ {[%emt 0:00:02]} 6. bxc3 {
[%emt 0:00:01]} Qc7 {[%emt 0:00:01]} 7. Qg4 {[%emt 0:00:05]} f6 {[%emt 0:00:01]
} 8. Nf3 {[%emt 0:00:05]} c4 {[%emt 0:00:04]} 9. Be2 {[%emt 0:00:12]} Nc6 {
[%emt 0:00:08]} 10. Bf4 {[%emt 0:00:12]} Qf7 {[%emt 0:00:08]} 11. h4 {[%emt 0:
00:04]} h5 {[%emt 0:00:12]} 12. Qg3 {[%emt 0:00:12]} Nh6 {[%emt 0:00:09]} 13.
Bxh6 {[%emt 0:00:06]} Rxh6 {[%emt 0:00:02]} 14. O-O {[%emt 0:00:11]} Bd7 {
[%emt 0:00:16]} 15. exf6 {[%emt 0:00:13]} gxf6 {[%emt 0:00:04]} 16. Qc7 {
[%emt 0:00:05]} Bc8 {[%emt 0:00:13]} 17. Qd6 {[%emt 0:00:06]} Qe7 {[%emt 0:00:
22]} 18. Qf4 {[%emt 0:00:06]} Rh8 {[%emt 0:00:04]} 19. Qe3 {[%emt 0:00:08]} Bd7
{[%emt 0:00:06]} 20. Rfe1 {[%emt 0:00:12]} O-O-O {[%emt 0:00:04]} 21. Bf1 {
[%emt 0:00:01]} Rhg8 {[%emt 0:00:08]} 22. g3 {[%emt 0:00:02]} Rde8 {[%emt 0:00:
07]} 23. Bh3 {[%emt 0:00:04]} e5 {[%emt 0:00:16]} 24. Bxd7+ {[%emt 0:00:05]}
Qxd7 {[%emt 0:00:01]} 25. dxe5 {[%emt 0:00:06]} fxe5 {[%emt 0:00:03]} 26. Ng5 {
[%emt 0:00:05]} Rgf8 {[%emt 0:00:34]} 27. Rad1 {[%emt 0:00:04]} Kb8 {[%emt 0:
00:13]} 28. Qe2 {[%emt 0:00:15]} Rd8 {[%emt 0:00:09]} 29. Qxh5 {[%emt 0:00:08]}
Qf5 {[%emt 0:00:04]} 30. Qe2 {[%emt 0:00:11]} e4 {[%emt 0:00:28]} 31. Kg2 {
[%emt 0:00:29]} Ne5 {[%emt 0:00:00]} 32. Rf1 {[%emt 0:00:06]} Rg8 {[%emt 0:00:
00]} 33. Qe3 {[%emt 0:00:07]} Rd7 {[%emt 0:00:00]} 34. f4 {[%emt 0:00:11]}
exf3+ {[%emt 0:00:00]} 35. Nxf3 {[%emt 0:00:02]} Nxf3 {[%emt 0:00:00]} 36. Qxf3
{[%emt 0:00:04]} Qxc2+ {[%emt 0:00:00]} 37. Rf2 {[%emt 0:00:00]} Qg6 {[%emt 0:
00:04]} 38. Rd4 {[%emt 0:00:04]} Rdg7 {[%emt 0:00:01]} 39. Qf4+ {[%emt 0:00:05]
} Ka8 {[%emt 0:00:02]} 40. Rf3 {[%emt 0:00:01]} a6 {[%emt 0:00:02]} 41. Rxd5 {
[%emt 0:00:02]} Qc2+ {[%emt 0:00:01]} 42. Kh3 {[%emt 0:00:01]} Qb1 {[%emt 0:00:
02]} 43. Kh2 {[%emt 0:00:03]} Re8 {[%emt 0:00:02]} 44. Rd2 {[%emt 0:00:04]}
Rge7 {[%emt 0:00:03]} 45. Rf1 {[%emt 0:00:01]} Qg6 {[%emt 0:00:04]} 46. Rdf2 {
[%emt 0:00:01]} Qc6 {[%emt 0:00:02]} 47. Qf3 {[%emt 0:00:02]} Qc5 {[%emt 0:00:
01]} 48. Qf5 {[%emt 0:00:03]} Re5 {[%emt 0:00:02]} 49. Qf4 {[%emt 0:00:01]}
Qxa3 {[%emt 0:00:01]} 50. Qxc4 {[%emt 0:00:01]} Qd6 {[%emt 0:00:02]} 51. Qd4 {
[%emt 0:00:02]} Qc7 {[%emt 0:00:01]} 52. Rf8 {[%emt 0:00:03]} Re2+ {[%emt 0:00:
04]} 53. R1f2 {[%emt 0:00:03]} Rxf2+ {[%emt 0:00:02]} 54. Rxf2 {[%emt 0:00:02]}
Rd8 {[%emt 0:00:01]} 55. Qe3 {[%emt 0:00:02]} Rg8 {[%emt 0:00:03]} 56. Qf3 {
[%emt 0:00:03]} a5 {[%emt 0:00:01]} 57. Ra2 {[%emt 0:00:01]} Qc5 {[%emt 0:00:
03]} 58. Qf4 {[%emt 0:00:02]} Rf8 {[%emt 0:00:01]} 59. Qd4 {[%emt 0:00:03]} Qf5
{[%emt 0:00:02]} 60. Qb6 {[%emt 0:00:03]} Kb8 {[%emt 0:00:05]} 61. Qxa5 {
[%emt 0:00:01]} Qf1 {[%emt 0:00:05]} 62. Qa7+ {[%emt 0:00:02]} Kc7 {[%emt 0:00:
00]} 63. Qc5+ {[%emt 0:00:01]} Kb8 {[%emt 0:00:02]} 64. Qd6+ {[%emt 0:00:01]}
1-0

[Event "FIDE Women World Blitz 2021"]
[Site "Warsaw"]
[Date "2021.12.29"]
[Round "1.33"]
[White "Bartel, Marta"]
[Black "Majdan, Joanna"]
[Result "1-0"]
[ECO "E61"]
[WhiteElo "2192"]
[BlackElo "2325"]
[Annotator "NA"]
[PlyCount "103"]
[EventDate "2021.12.29"]
[EventType "swiss"]
[EventCountry "POL"]
[Tiebreak "Cut1 Buchholz"]
[SourceTitle "playchess.com"]
[Source "ChessBase"]
[SourceQuality "1"]
[TimeControl "180+2"]

1. d4 {[%emt 0:00:01]} Nf6 {[%emt 0:00:01]} 2. Nf3 {[%emt 0:00:01]} d6 {
[%emt 0:00:01]} 3. Bg5 {[%emt 0:00:03]} Nbd7 {[%emt 0:00:01]} 4. e3 {[%emt 0:
00:02]} g6 {[%emt 0:00:01]} 5. c4 {[%emt 0:00:03]} Bg7 {[%emt 0:00:02]} 6. Nc3
{[%emt 0:00:01]} O-O {[%emt 0:00:01]} 7. Be2 {[%emt 0:00:00]} e5 {[%emt 0:00:
08]} 8. O-O {[%emt 0:00:07]} h6 {[%emt 0:00:01]} 9. Bh4 {[%emt 0:00:01]} c6 {
[%emt 0:00:18]} 10. Qc2 {[%emt 0:00:02]} Qe7 {[%emt 0:00:02]} 11. Rad1 {
[%emt 0:00:06]} Re8 {[%emt 0:00:03]} 12. a3 {[%emt 0:00:23]} a6 {[%emt 0:00:01]
} 13. b4 {[%emt 0:00:02]} e4 {[%emt 0:00:38]} 14. Nd2 {[%emt 0:00:02]} g5 {
[%emt 0:00:01]} 15. Bg3 {[%emt 0:00:01]} Nf8 {[%emt 0:00:06]} 16. Nb3 {[%emt 0:
00:24]} Ng6 {[%emt 0:00:02]} 17. d5 {[%emt 0:00:00]} cxd5 {[%emt 0:00:11]} 18.
Nxd5 {[%emt 0:00:03]} Nxd5 {[%emt 0:00:02]} 19. Rxd5 {[%emt 0:00:01]} Ne5 {
[%emt 0:00:20]} 20. Rfd1 {[%emt 0:00:07]} Be6 {[%emt 0:00:09]} 21. Rxd6 {
[%emt 0:00:23]} Rac8 {[%emt 0:00:09]} 22. c5 {[%emt 0:00:04]} Bf5 {[%emt 0:00:
07]} 23. Qd2 {[%emt 0:00:23]} Bg6 {[%emt 0:00:07]} 24. Na5 {[%emt 0:00:07]} h5
{[%emt 0:00:06]} 25. h3 {[%emt 0:00:02]} h4 {[%emt 0:00:03]} 26. Bh2 {[%emt 0:
00:00]} Bf5 {[%emt 0:00:08]} 27. Nc4 {[%emt 0:00:05]} Nd3 {[%emt 0:00:03]} 28.
Nb6 {[%emt 0:00:11]} Rcd8 {[%emt 0:00:03]} 29. Nd5 {[%emt 0:00:08]} Qf8 {
[%emt 0:00:01]} 30. Nc7 {[%emt 0:00:28]} Re7 {[%emt 0:00:07]} 31. Nd5 {[%emt 0:
00:07]} Red7 {[%emt 0:00:02]} 32. f3 {[%emt 0:00:06]} Be5 {[%emt 0:00:16]} 33.
Bxe5 {[%emt 0:00:09]} Nxe5 {[%emt 0:00:01]} 34. Nf6+ {[%emt 0:00:06]} Kg7 {
[%emt 0:00:00]} 35. Nxd7 {[%emt 0:00:02]} Rxd7 {[%emt 0:00:06]} 36. Rxd7 {
[%emt 0:00:04]} Nxd7 {[%emt 0:00:03]} 37. fxe4 {[%emt 0:00:03]} Be6 {[%emt 0:
00:01]} 38. Qd4+ {[%emt 0:00:02]} Kg8 {[%emt 0:00:02]} 39. Rf1 {[%emt 0:00:03]}
Qe7 {[%emt 0:00:08]} 40. Bc4 {[%emt 0:00:02]} Nf8 {[%emt 0:00:04]} 41. Bxe6 {
[%emt 0:00:03]} Nxe6 {[%emt 0:00:01]} 42. Qd5 {[%emt 0:00:04]} Kg7 {[%emt 0:00:
03]} 43. Qf5 {[%emt 0:00:01]} Qc7 {[%emt 0:00:01]} 44. e5 {[%emt 0:00:02]} Qd7
{[%emt 0:00:02]} 45. Qf6+ {[%emt 0:00:03]} Kg8 {[%emt 0:00:00]} 46. Qf3 {
[%emt 0:00:06]} Kg7 {[%emt 0:00:02]} 47. Rd1 {[%emt 0:00:02]} Qc7 {[%emt 0:00:
01]} 48. Rd6 {[%emt 0:00:01]} Qc8 {[%emt 0:00:04]} 49. Qf6+ {[%emt 0:00:02]}
Kg8 {[%emt 0:00:01]} 50. Qe7 {[%emt 0:00:05]} Kg7 {[%emt 0:00:06]} 51. Rd7 {
[%emt 0:00:01]} Qg8 {[%emt 0:00:04]} 52. Qxe6 {[%emt 0:00:02]} 1-0

[Event "FIDE Women World Blitz 2021"]
[Site "Warsaw"]
[Date "2021.12.29"]
[Round "1.34"]
[White "Kulon, Klaudia"]
[Black "Vantika Agrawal"]
[Result "0-1"]
[ECO "A24"]
[WhiteElo "2328"]
[BlackElo "2329"]
[Annotator "NA"]
[PlyCount "140"]
[EventDate "2021.12.29"]
[EventType "swiss"]
[EventCountry "POL"]
[Tiebreak "Cut1 Buchholz"]
[SourceTitle "playchess.com"]
[Source "ChessBase"]
[SourceQuality "1"]
[TimeControl "180+2"]

1. c4 {[%emt 0:00:01]} Nf6 {[%emt 0:00:01]} 2. g3 {[%emt 0:00:00]} g6 {[%emt 0:
00:02]} 3. Bg2 {[%emt 0:00:01]} Bg7 {[%emt 0:00:01]} 4. Nc3 {[%emt 0:00:01]}
O-O {[%emt 0:00:02]} 5. e3 {[%emt 0:00:01]} d6 {[%emt 0:00:02]} 6. Nge2 {
[%emt 0:00:01]} e5 {[%emt 0:00:05]} 7. O-O {[%emt 0:00:01]} h5 {[%emt 0:00:08]}
8. h3 {[%emt 0:00:02]} Nbd7 {[%emt 0:00:06]} 9. b4 {[%emt 0:00:04]} Re8 {
[%emt 0:00:13]} 10. d4 {[%emt 0:00:03]} e4 {[%emt 0:00:11]} 11. Qc2 {[%emt 0:
00:10]} Qe7 {[%emt 0:00:01]} 12. Nf4 {[%emt 0:00:03]} c6 {[%emt 0:00:16]} 13.
d5 {[%emt 0:00:03]} c5 {[%emt 0:00:21]} 14. a3 {[%emt 0:00:03]} b6 {[%emt 0:00:
13]} 15. Bb2 {[%emt 0:00:08]} Nf8 {[%emt 0:00:14]} 16. Rae1 {[%emt 0:00:08]}
Bf5 {[%emt 0:00:03]} 17. Kh2 {[%emt 0:00:15]} N8d7 {[%emt 0:00:20]} 18. Qe2 {
[%emt 0:00:19]} Ne5 {[%emt 0:00:06]} 19. bxc5 {[%emt 0:00:03]} bxc5 {[%emt 0:
00:01]} 20. Rb1 {[%emt 0:00:03]} Nf3+ {[%emt 0:00:13]} 21. Kh1 {[%emt 0:00:01]}
g5 {[%emt 0:00:07]} 22. Nxh5 {[%emt 0:00:11]} Nxh5 {[%emt 0:00:01]} 23. g4 {
[%emt 0:00:00]} Qe5 {[%emt 0:00:22]} 24. Bxf3 {[%emt 0:00:16]} exf3 {[%emt 0:
00:01]} 25. Qxf3 {[%emt 0:00:01]} Bxb1 {[%emt 0:00:01]} 26. Rxb1 {[%emt 0:00:
01]} Nf6 {[%emt 0:00:06]} 27. Nb5 {[%emt 0:00:08]} Qe4 {[%emt 0:00:06]} 28.
Qxe4 {[%emt 0:00:03]} Nxe4 {[%emt 0:00:01]} 29. Nc7 {[%emt 0:00:06]} Reb8 {
[%emt 0:00:11]} 30. Nxa8 {[%emt 0:00:01]} Rxb2 {[%emt 0:00:07]} 31. Rc1 {
[%emt 0:00:10]} Nxf2+ {[%emt 0:00:03]} 32. Kg1 {[%emt 0:00:02]} Nxh3+ {[%emt 0:
00:02]} 33. Kf1 {[%emt 0:00:00]} Be5 {[%emt 0:00:11]} 34. Nc7 {[%emt 0:00:03]}
Bg3 {[%emt 0:00:02]} 35. Nb5 {[%emt 0:00:08]} Rf2+ {[%emt 0:00:03]} 36. Ke1 {
[%emt 0:00:01]} Rg2+ {[%emt 0:00:04]} 37. Kd1 {[%emt 0:00:00]} Nf2+ {[%emt 0:
00:02]} 38. Kc2 {[%emt 0:00:04]} Nxg4+ {[%emt 0:00:02]} 39. Kd3 {[%emt 0:00:03]
} f5 {[%emt 0:00:03]} 40. Nxa7 {[%emt 0:00:02]} Ne5+ {[%emt 0:00:02]} 41. Kc3 {
[%emt 0:00:02]} Re2 {[%emt 0:00:02]} 42. Kb3 {[%emt 0:00:11]} Rxe3+ {[%emt 0:
00:01]} 43. Ka4 {[%emt 0:00:00]} Re4 {[%emt 0:00:03]} 44. Kb5 {[%emt 0:00:01]}
f4 {[%emt 0:00:02]} 45. Nc8 {[%emt 0:00:02]} f3 {[%emt 0:00:02]} 46. Nxd6 {
[%emt 0:00:02]} Re2 {[%emt 0:00:02]} 47. Nf5 {[%emt 0:00:02]} Bf4 {[%emt 0:00:
02]} 48. Ra1 {[%emt 0:00:04]} f2 {[%emt 0:00:01]} 49. Rf1 {[%emt 0:00:02]} Nd3
{[%emt 0:00:03]} 50. Nh6+ {[%emt 0:00:11]} Kg7 {[%emt 0:00:01]} 51. Ng4 {
[%emt 0:00:01]} Re1 {[%emt 0:00:03]} 52. Rxf2 {[%emt 0:00:12]} Nxf2 {[%emt 0:
00:01]} 53. Nxf2 {[%emt 0:00:01]} Rb1+ {[%emt 0:00:02]} 54. Kc6 {[%emt 0:00:01]
} Ra1 {[%emt 0:00:01]} 55. Nd3 {[%emt 0:00:00]} Rxa3 {[%emt 0:00:03]} 56. Nxc5
{[%emt 0:00:01]} Rc3 {[%emt 0:00:03]} 57. Ne6+ {[%emt 0:00:01]} Kf6 {[%emt 0:
00:01]} 58. c5 {[%emt 0:00:01]} Be5 {[%emt 0:00:03]} 59. Kd7 {[%emt 0:00:05]}
g4 {[%emt 0:00:02]} 60. c6 {[%emt 0:00:05]} g3 {[%emt 0:00:01]} 61. d6 {
[%emt 0:00:00]} Bxd6 {[%emt 0:00:03]} 62. Kxd6 {[%emt 0:00:04]} g2 {[%emt 0:00:
02]} 63. Nc5 {[%emt 0:00:01]} Rxc5 {[%emt 0:00:02]} 64. Kxc5 {[%emt 0:00:01]}
g1=Q+ {[%emt 0:00:03]} 65. Kd6 {[%emt 0:00:01]} Qd4+ {[%emt 0:00:02]} 66. Kc7 {
[%emt 0:00:00]} Ke7 {[%emt 0:00:00]} 67. Kb7 {[%emt 0:00:01]} Qb4+ {[%emt 0:00:
02]} 68. Kc8 {[%emt 0:00:01]} Qb5 {[%emt 0:00:01]} 69. c7 {[%emt 0:00:01]} Kd6
{[%emt 0:00:02]} 70. Kd8 {[%emt 0:00:01]} Qd7# {[%emt 0:00:00]} 0-1